Cogmind - Beta 14 @@@ ROGUE MODE // 2024.09.30 @ 06:18:26 Player: Omega Result: Destroyed by D-53 Grenadier with Mini Grenade Launcher Performance ------------- Evolutions (0) 0 Regions Visited (2) 400 Robots Destroyed (8) 40 Value Destroyed (252) 252 Prototype IDs (0) 0 Alien Tech Used (0) 0 Bonus (0) 0 TOTAL SCORE: 692 Bonus ------- None Cogmind --------- Core Integrity 0/250 Matter 262/300 Energy 98/100 System Corruption 3% Temperature Cool (19) Movement Walking (190) Ox1 Location -10/Mines Parts ------- > --- POWER (1) -------- (None) > --- PROPULSION (2) --- Aluminum Leg > --- UTILITY (2) ------ Medium Storage Unit Structural Scanner > --- WEAPON (2) ------- (None) > --- INVENTORY (10) --- Ion Engine Aluminum Leg Aluminum Leg Improved Heat Sink Sensor Array Improved Terrain Scanner Seismic Detector EM Pulse Gun Mining Laser Peak State ------------ > --- POWER ------------ Ion Engine > --- PROPULSION ------- Aluminum Leg Aluminum Leg > --- UTILITY ---------- Small Storage Unit Improved Terrain Scanner > --- WEAPON ----------- EM Pulse Gun Assault Rifle > --- INVENTORY -------- Ion Engine Heat Sink Light Cannon Light Cannon [Rating: 9] Favorites ----------- Power Ion Engine Engine Ion Engine Propulsion Aluminum Leg Leg Aluminum Leg Utility Structural Scanner Device Structural Scanner Storage Medium Storage Unit Weapon EM Pulse Gun Energy Gun EM Pulse Gun Ballistic Gun Assault Rifle Ballistic Cannon Light Cannon Special Weapon Mining Laser Build | -11 -10 -10 ------- Run | Yrd Mat Min Slots Evolved . | . . . Power . | . . . Propulsion . | . . . Utility . | . . . Weapon . | . . . Parts Attached 26 | 6 15 5 Power 4 | 1 2 1 Engine 4 | 1 2 1 Core . | . . . Reactor . | . . . Propulsion 7 | 2 4 1 Treads . | . . . Leg 7 | 2 4 1 Wheel . | . . . Hover . | . . . Flight . | . . . Utility 7 | 1 6 . Device 4 | 1 3 . Storage 3 | . 3 . Processor . | . . . Hackware . | . . . Protection . | . . . Artifact . | . . . Weapon 8 | 2 3 3 Energy Gun 3 | 1 2 . Energy Cannon . | . . . Ballistic Gun 2 | 1 1 . Ballistic Cannon 2 | . . 2 Launcher . | . . . Special Weapon 1 | . . 1 Impact Weapon . | . . . Slashing Weapon . | . . . Piercing Weapon . | . . . Special Melee Weapon . | . . . Unidentified Prototypes . | . . . Parts Lost 5 | . . 5 Power 1 | . . 1 Propulsion 2 | . . 2 Utility . | . . . Weapon 2 | . . 2 Highest Loss Streak 4 | . . 4 To Critical Strikes . | . . . Average Slot Usage (%) 98 | . 97 99 Engine 14 | . 14 14 Leg 27 | . 27 27 Device 13 | . 13 14 Storage 13 | . 13 14 Energy Gun 18 | . 23 5 Ballistic Gun 2 | . 3 . Ballistic Cannon 5 | . . 20 Peak Build Rating 9 | 8 9 9 Average Rating 8 | 4 8 8 On Entrance 5 | . 8 9 Naked Turns . | . . . Heaviest Build 31 | 10 31 22 Greatest Support 20 | 20 20 20 Greatest Overweight (x) 3 | 2 3 2 Average Overweight (x) . | . . . Largest Inventory Capacity 15 | 5 15 10 Average Capacity 9 | 5 9 10 Most Carried 10 | 2 10 10 Average Carried 7 | 1 7 9 Final Capacity 10 | 5 10 10 Final Carried 10 | 2 10 9 Class Distribution -------------------- 96% | Mutant 3% | Scavenger-Mutant Dominant Class ---------------- Mutant | -10/Materials Mutant | -10/Mines Resources | -11 -10 -10 ----------- Run | Yrd Mat Min Matter Collected 478 | 195 216 67 Remotely . | . . . Salvage Created 278 | 13 216 49 Parts 14 | 2 10 2 Haulers Intercepted 1 | . 1 . Recyclers Shooed . | . . . Parts Field Recycled . | . . . Retrieved Matter . | . . . Parts Self-Destructed . | . . . Prevented . | . . . Kills | -11 -10 -10 ------- Run | Yrd Mat Min Combat Hostiles Destroyed 6 | . 4 2 Guns 4 | . 4 . Cannons 2 | . . 2 Classes Destroyed 3 | 1 2 . Tunneler 1 | 1 . . Hauler 1 | . 1 . Grunt 6 | . 4 2 Best Kill Streak 3 | 1 3 2 Combat Bots Only 2 | . 2 2 Max Kills in Single Turn 1 | 1 1 1 Gunslinging . | . . . Exploded . | . . . Melee . | . . . Uniques/NPCs Destroyed . | . . . Combat | -11 -10 -10 -------- Run | Yrd Mat Min Hostile Shots Fired 96 | . 27 69 Missed 30 | . 12 18 Damage Taken 1087 | . 204 883 Core 281 | . 68 213 Absorbed by Shields . | . . . Core Remaining (%) 100 | 100 . . Volleys Fired 30 | 2 14 14 Largest 2 | 2 2 2 Hottest 165 | 60 105 165 Shots Fired 52 | 4 28 20 Gun 35 | 4 28 3 Cannon 15 | . . 15 Launcher . | . . . Special 2 | . . 2 Kinetic 22 | 2 5 15 Thermal 14 | . 9 5 Explosive . | . . . Electromagnetic 16 | 2 14 . Robot Hit Streak 12 | 3 12 8 Robot Miss Streak 6 | 1 6 3 Penetration Max . | . . . Secondary Targets 1 | . 1 . Max Gunslinging Chain 1 | . 1 . Shots Hit Robots 30 | 3 16 11 Core Hits 14 | 1 9 4 Critical Kills . | . . . Critical Parts Destroyed . | . . . Critical Strikes 1 | . . 1 Blast 1 | . . 1 Melee Attacks . | . . . Impact . | . . . Slashing . | . . . Piercing . | . . . Sneak Attacks . | . . . Combat Hostiles . | . . . Follow-up Attacks . | . . . Damage Inflicted 553 | 37 232 284 Guns 299 | 37 232 30 Cannons 254 | . . 254 Explosions . | . . . Melee . | . . . Ramming . | . . . Kinetic 337 | 24 59 254 Thermal 110 | . 80 30 Explosive . | . . . Electromagnetic 106 | 13 93 . Impact . | . . . Slashing . | . . . Piercing . | . . . Highest Corruption 3 | . . 3 Average Corruption 3 | . . 3 Corruption Purged . | . . . Corruption Blocked . | . . . Overload Shots . | . . . Overflow Damage . | . . . Projectiles . | . . . Explosions . | . . . Melee . | . . . Knockbacks 4 | . . 4 Impact . | . . . Kinetic 4 | . . 4 Secondary . | . . . Self-Inflicted Damage . | . . . Shots . | . . . Rammed . | . . . Targets Rammed . | . . . Kicked . | . . . Crushed . | . . . Highest Temperature 370 | . 370 230 Average Temperature 137 | . 150 120 Received Heat Transfer 295 | . 120 175 Effects 5 | . 2 3 Shutdowns 1 | . 1 . Energy Bleed 3 | . 1 2 Interference 1 | . . 1 Siege Activations . | . . . Robots Corrupted . | . . . Combat Hostiles . | . . . Parts Fried . | . . . Impact Corruptions . | . . . Robots Melted . | . . . Combat Hostiles . | . . . Parts Melted . | . . . Heat Transferred 259 | . 185 74 Parts Sabotaged . | . . . Parts Stolen . | . . . Parts Stripped . | . . . Power Chain Reactions . | . . . Alert | -11 -10 -10 ------- Run | Yrd Mat Min Peak Influence 102 | 5 102 81 Initial 39 | . 3 39 Average 59 | 1 60 72 Maximum Alert Level . | . . . Low Security (%) 100 | 100 100 100 Level 1 . | . . . Level 2 . | . . . Level 3 . | . . . Level 4 . | . . . Level 5 . | . . . High Security . | . . . Max Security . | . . . Squads Dispatched . | . . . Investigation . | . . . Extermination . | . . . Reinforcement . | . . . Assault . | . . . Garrison . | . . . Intercept . | . . . Searches Triggered . | . . . Construction Impeded . | . . . Haulers Reinforced . | . . . Active Scanning Responses . | . . . Cargo Convoy Interrupts . | . . . Stealth | -11 -10 -10 --------- Run | Yrd Mat Min Distress Signals . | . . . Communications Jammed . | . . . Distress Signals . | . . . Times Spotted 27 | . 6 21 Peak Tracking Total 22 | . 2 22 Tactical Retreats 1 | . 1 . Traps | -11 -10 -10 ------- Run | Yrd Mat Min Traps Triggered 2 | . 2 . Indirectly . | . . . Trap Hack Attempts . | . . . Triggered . | . . . Disarmed . | . . . Reprogrammed . | . . . Reused . | . . . Traps Extracted . | . . . Installed . | . . . Triggered . | . . . Machines | -11 -10 -10 ---------- Run | Yrd Mat Min Machines Disabled . | . . . Max in Single Turn . | . . . Machines Repaired . | . . . Machines Dismantled . | . . . Machines Sabotaged . | . . . Overloaded Fab Kills . | . . . Hacking | -11 -10 -10 --------- Run | Yrd Mat Min Machines Accessed 1 | . 1 . Terminals 1 | . 1 . Fabricators . | . . . Repair Stations . | . . . Recycling Units . | . . . Scanalyzers . | . . . Garrison Access . | . . . Total Hacks 2 | . 2 . Successful 1 | . 1 . Failed 1 | . 1 . Catastrophic 1 | . 1 . Database Lockouts . | . . . Manual 2 | . 2 . Terminals 2 | . 2 . Fabricators . | . . . Repair Stations . | . . . Recycling Units . | . . . Scanalyzers . | . . . Garrison Access . | . . . Terminal Hacks . | . . . Fabricator Hacks . | . . . Repair Station Hacks . | . . . Recycling Unit Hacks . | . . . Scanalyzer . | . . . Garrison Access Hacks . | . . . Unauthorized Hacks 1 | . 1 . Terminals 1 | . 1 . Botnet 1 | . 1 . Fabricators . | . . . Repair Stations . | . . . Recycling Units . | . . . Scanalyzers . | . . . Garrison Access . | . . . Data Cores Recovered . | . . . Used . | . . . Hacking Detections 1 | . 1 . Full Trace Events . | . . . Feedback Events . | . . . Feedback Blocked . | . . . Robot Schematics Acquired . | . . . Robots Built . | . . . Authchips . | . . . Time . | . . . Total Robot Build Rating . | . . . Part Schematics Acquired . | . . . Parts Built . | . . . Authchips . | . . . Time . | . . . Total Part Build Rating . | . . . Parts Repaired . | . . . Time . | . . . Parts Recycled . | . . . Recycled Matter . | . . . Retrieved Matter . | . . . Retrieved Components . | . . . Parts Scanalyzed . | . . . Part Schematics Acquired . | . . . Parts Damaged . | . . . Bothacking | -11 -10 -10 ------------ Run | Yrd Mat Min Used RIF Installer . | . . . Robots Hacked . | . . . Non-combat . | . . . Combat . | . . . Robot Hacks Applied . | . . . Relay Couplers Released . | . . . Fabnet Peak Effective % . | . . . Robots Rewired . | . . . Allies Hacked . | . . . Hacks Repelled . | . . . Allies | -11 -10 -10 -------- Run | Yrd Mat Min Total Allies . | . . . Largest Group . | . . . Highest-Rated Group . | . . . Highest-Rated Ally . | . . . Total Orders . | . . . Ally Attacks . | . . . Total Damage . | . . . Kills . | . . . Allies Corrupted . | . . . Allies Melted . | . . . Intel | -11 -10 -10 ------- Run | Yrd Mat Min Robot Analysis Total . | . . . Derelict Logs Recovered . | . . . Drone Launches . | . . . Drone Recoveries . | . . . Exploration | -11 -10 -10 ------------- Run | Yrd Mat Min Turns Passed 836 | 67 542 227 Spaces Moved 423 | 43 282 98 Core 10 | 9 1 . Treads . | . . . Legs 413 | 34 281 98 Wheels . | . . . Hover . | . . . Flight . | . . . Fastest Speed 50 | 50 120 120 Average Speed 164 | 118 165 182 Slowest Speed 260 | 150 200 260 Overloaded Moves . | . . . Propulsion Burnouts . | . . . Robots Hopped . | . . . Cave-ins Triggered . | . . . Exploration Rate (%) 23 | 4 32 35 Regions Visited 2 Branch Regions 1 Pre-discovered Areas . | . . . Known Exits Taken . | . . . Unknown Exits Taken 2 | 1 1 . Scrap Searched . | . . . Spaces Dug . | . . . Terrain Destroyed 2 | . . 2 Melee . | . . . Projectile 2 | . . 2 AOE . | . . . Terrain Rammed . | . . . Walls Destroyed . | . . . Machines Disabled . | . . . Actions | -11 -10 -10 --------- Run | Yrd Mat Min Total 500 | 52 325 123 Wait 6 | . 2 4 Move 421 | 42 281 98 Hop . | . . . Pick Up 10 | 2 8 . Fast Attach 17 | 6 10 1 Attach 2 | . 1 1 Detach 2 | . 2 . Swap 7 | . 4 3 Drop 5 | . 3 2 Fire 30 | 2 14 14 Melee . | . . . Ram . | . . . Kick . | . . . Crush . | . . . Escape Stasis . | . . . Rewire . | . . . Trap . | . . . Miscellaneous . | . . . Route ------- -11/Scrapyard -10/Materials (discovered 2 exits: [*Mat] / [*Min]) -10/Mines History --------- Turn | Location | Event 4 | -11/Scrapyard | Discovered new exit (range 16) 68 | -11/Scrapyard | Entered Materials 128 | -10/Materials | Discovered new exit (range 15) 222 | -10/Materials | Discovered new exit (range 12) 317 | -10/Materials | Build established: Mutant 610 | -10/Materials | Entered Mines 816 | -10/Mines | Assembled infested the area 834 | -10/Mines | Core integrity fell below 50% 837 | -10/Mines | Destroyed by D-53 Grenadier with Mini Grenade Launcher Last Messages --------------- K-01 Serf collects debris. ALERT: Infestation in the mines, dispatching Demolisher response squad. as-91794 knocked back. [Achievement: Hunted] Ion Engine destroyed. System corrupted by crushing effect (+3). as-15295 knocked back. C-30 ARC bursts open, deploying its payload. D-53 Grenadier unfolds itself. as-15295 destroyed. Lgt. Cannon destroyed. as-94425 destroyed. as-91794 destroyed. as-19129 destroyed. Aluminum Leg destroyed. as-93014 destroyed. as-09945 destroyed. as-66143 destroyed. K-01 Serf collects debris. Map ----- +----------------------------------------------------+ | ????????????????????????????????#######??????##### | | ???????????????????????????####### ###??????##### | | ??????????????????????????######## ##??????## | | ??????????????????????????### ## ##??????## "" | | ??????????????????????????## ##??????## "" | | ??????????????????????????## ###??????## "" | | ??????????????????????????## ###??????## | | ??????????????????????????## ########### | | ??????????????????????????### ########## | | ??????????????????????????#### #### | | ???????????????????????????#### #### | | ???????????????????????????#### ####" "### | | ??????????????????############ ##### | | ???????????????############## ############# | | ??????????????###### ## ############# | | ????????????##### #####??????? | | ???????????? ### ## ####?????? | | ???????????? #### ###?????? | | ?????????????### ######## ##?????? | | ?????????????### ########## ##?????? | | ?????????????## ########## ###????? | | ???????????? ### ##?###### ###????? | | ?????????????????#####%dk ##?## ###???? | | ???????????????????####d ###?### ####??? | | ????????????????????### #####?####### ###??? | | ??????????????????##### @ ###???####### ##??? | | ?????????????????#### ####?????### ###?? | | ?????????????????### a % #####???### ###? | | ?????????????????## ###??### ##? | | ?????????????????## ##?### ##? | | ?????????????????## a ##### ## ###? | | ?????????????????### a #### #########? | | ?????????????????##### a #### #########?? | | ??????????????????##### ########????????? | | ????????????????????#### ########?????????? | | ?????????????????????##aa #####??????????????? | | ??????????????????????? % #####???????????????? | | ?????????????????????? ###?????????????????? | | ?????????????????????? ##??????????????????? | | ????????????????????? ##??????????????????? | | ???????????????????## a #??????????????????? | | ???????????????????### ???????????????????? | | ???????????????????####% ???????????????????? | | ????????????????????#### ???????????????????? | | ?????????????????????### ????????????????????? | | ?????????????????????????????????????????????????? | | ?????????????????????????????????????????????????? | | ?????????????????????????????????????????????????? | | ?????????????????????????????????????????????????? | | ?????????????????????????????????????????????????? | +----------------------------------------------------+ Best States ------------- Heat Dissipation 25 Energy Generation 10 Energy Capacity 250 Matter Stores 290 Matter Capacity 300 Sight Range 16 Terrain Scan Range 16 Terrain Scan Density 10 Evasion (%) 55 Item Schematics ----------------- None Robot Schematics ------------------ None Fabricated ------------ Nothing Alien Tech Used ----------------- None Achievements -------------- Hunted Challenges ------------ None Game ------ Seed PoweredFlyingReconfigurator Manual? 0 Play Time 00:10:35 Cumulative 19.7 hours Start 2024.09.30 @ 06:09:05 End 2024.09.30 @ 06:18:26 Sessions 1 Manual Loads 0 Difficulty Rogue Special Mode None Game No. 23 Rogue 23 Adventurer 0 Explorer 0 Win Type - Total 0 Types 0/0/0/0/0/0/0/0/0 Lore% 14 Gallery% 23 Achievement% 21 Wizard Run 0 Options --------- Layout 1 ASCII 0 Keyboard 0 Movement Mouse Keybinds 0 Fullscreen 1 Font 24/Smallcaps Map View 50x35 Zoom Use 0% Tactical HUD 0 Map Filters NONE Filters NONE Steam 1 RUN: 8b3cd4de-b24a-4529-a39d-feab969510d1